[Event "*** Titled Tuesday Blitz"]
[Site "Chess.com"]
[Date "2018.09.04"]
[Round "10"]
[White "Karina_Oparina"]
[Black "Jbd735"]
[Result "0-1"]
[WhiteElo "2193"]
[BlackElo "2367"]
[TimeControl "180+2"]
[EndTime "15:51:08 PDT"]
[Termination "Jbd735 won on time"]

1. d4 {[%clk 0:01:58.3]} 1... d5 {[%clk 0:02:59.7]} 2. c4 {[%clk 0:01:57.2]}
2... e6 {[%clk 0:02:59.4]} 3. cxd5 {[%clk 0:01:55.7]} 3... exd5 {[%clk
0:02:59.8]} 4. Nc3 {[%clk 0:01:56.6]} 4... Nf6 {[%clk 0:02:58.5]} 5. Bg5 {[%clk
0:01:55.4]} 5... Be7 {[%clk 0:02:58.9]} 6. Qc2 {[%clk 0:01:55.7]} 6... O-O
{[%clk 0:02:57.5]} 7. e3 {[%clk 0:01:55.4]} 7... c6 {[%clk 0:02:51.2]} 8. Bd3
{[%clk 0:01:56.3]} 8... h6 {[%clk 0:02:51.7]} 9. Bh4 {[%clk 0:01:55.2]} 9... Re8
{[%clk 0:02:29.4]} 10. Nge2 {[%clk 0:01:54.4]} 10... Ne4 {[%clk 0:02:22.7]} 11.
Bxe7 {[%clk 0:01:48.4]} 11... Qxe7 {[%clk 0:02:24.6]} 12. O-O {[%clk 0:01:43.1]}
12... Nd7 {[%clk 0:02:24.2]} 13. Rae1 {[%clk 0:01:38.1]} 13... Ndf6 {[%clk
0:02:22.7]} 14. Nc1 {[%clk 0:01:37.7]} 14... Bd7 {[%clk 0:02:11.6]} 15. f3
{[%clk 0:01:36.9]} 15... Nxc3 {[%clk 0:01:56.5]} 16. Qxc3 {[%clk 0:01:36.2]}
16... Qd6 {[%clk 0:01:54.2]} 17. e4 {[%clk 0:01:27.2]} 17... dxe4 {[%clk
0:01:30.9]} 18. fxe4 {[%clk 0:01:26.5]} 18... Qe7 {[%clk 0:01:19.5]} 19. Nb3
{[%clk 0:01:10.8]} 19... Rad8 {[%clk 0:01:19.2]} 20. Nc5 {[%clk 0:01:01.2]}
20... Bc8 {[%clk 0:01:18.9]} 21. e5 {[%clk 0:00:56.5]} 21... Nd5 {[%clk
0:01:17.3]} 22. Qd2 {[%clk 0:00:51.5]} 22... Qg5 {[%clk 0:01:12.7]} 23. Qf2
{[%clk 0:00:37.5]} 23... Re7 {[%clk 0:01:04.7]} 24. Ne4 {[%clk 0:00:32.4]} 24...
Qg4 {[%clk 0:01:00.2]} 25. Nd6 {[%clk 0:00:19.5]} 25... Be6 {[%clk 0:00:57.5]}
26. Be2 {[%clk 0:00:17]} 26... Qg5 {[%clk 0:00:55.7]} 27. Ne4 {[%clk 0:00:08.2]}
27... Qe3 {[%clk 0:00:55.3]} 28. Nd6 {[%clk 0:00:06.6]} 28... Qxf2+ {[%clk
0:00:53.7]} 29. Rxf2 {[%clk 0:00:07.2]} 29... Nb4 {[%clk 0:00:53.5]} 30. a3
{[%clk 0:00:04.3]} 30... Nc2 {[%clk 0:00:51.5]} 31. Rd1 {[%clk 0:00:05.3]} 31...
Bb3 {[%clk 0:00:50.5]} 32. Rd2 {[%clk 0:00:05.3]} 32... c5 {[%clk 0:00:26.2]}
0-1

[Event "*** Titled Tuesday Blitz"]
[Site "Chess.com"]
[Date "2018.09.04"]
[Round "10"]
[White "enriquetejedor"]
[Black "51616516516"]
[Result "1-0"]
[WhiteElo "2376"]
[BlackElo "2189"]
[TimeControl "180+2"]
[EndTime "15:51:09 PDT"]
[Termination "enriquetejedor won by resignation"]

1. e3 {[%clk 0:02:22.1]} 1... g6 {[%clk 0:02:48]} 2. Nf3 {[%clk 0:02:08.2]} 2...
Bg7 {[%clk 0:02:49.9]} 3. d4 {[%clk 0:02:07.3]} 3... Nf6 {[%clk 0:02:51]} 4.
Nbd2 {[%clk 0:02:04.7]} 4... b6 {[%clk 0:02:47.8]} 5. e4 {[%clk 0:02:06]} 5...
c5 {[%clk 0:02:39.7]} 6. e5 {[%clk 0:01:58.1]} 6... Ng8 {[%clk 0:02:35.3]} 7. d5
{[%clk 0:01:58.1]} 7... d6 {[%clk 0:02:32.3]} 8. exd6 {[%clk 0:01:58.5]} 8...
Qxd6 {[%clk 0:02:28.5]} 9. Ne4 {[%clk 0:01:59.3]} 9... Qd8 {[%clk 0:02:24.7]}
10. Bf4 {[%clk 0:01:57.4]} 10... Bb7 {[%clk 0:02:22.9]} 11. Bb5+ {[%clk
0:01:57.7]} 11... Kf8 {[%clk 0:02:18.3]} 12. c4 {[%clk 0:01:57.2]} 12... a6
{[%clk 0:02:14.3]} 13. Ba4 {[%clk 0:01:57.8]} 13... b5 {[%clk 0:02:15.4]} 14.
Bb3 {[%clk 0:01:57]} 14... Bxb2 {[%clk 0:02:09.7]} 15. Rb1 {[%clk 0:01:57.2]}
15... Bg7 {[%clk 0:02:10.3]} 16. O-O {[%clk 0:01:58]} 16... Nd7 {[%clk
0:02:07.9]} 17. Re1 {[%clk 0:01:37]} 17... Nh6 {[%clk 0:01:58]} 18. Qd2 {[%clk
0:01:30]} 18... Nf5 {[%clk 0:01:58.2]} 19. Bc2 {[%clk 0:01:29.6]} 19... b4
{[%clk 0:01:51.4]} 20. Ba4 {[%clk 0:01:19.9]} 20... Rc8 {[%clk 0:01:37.7]} 21.
a3 {[%clk 0:01:19.1]} 21... Nb6 {[%clk 0:01:37.6]} 22. axb4 {[%clk 0:01:16.7]}
22... Nxa4 {[%clk 0:01:34.9]} 23. bxc5 {[%clk 0:01:18]} 23... Ba8 {[%clk
0:00:58.1]} 24. Qb4 {[%clk 0:01:00.5]} 24... Qd7 {[%clk 0:00:35.8]} 25. c6
{[%clk 0:00:57.3]} 25... Bxc6 {[%clk 0:00:36.8]} 26. dxc6 {[%clk 0:00:57.7]}
26... Qxc6 {[%clk 0:00:38.7]} 27. Ne5 {[%clk 0:00:53.6]} 27... Bxe5 {[%clk
0:00:23.9]} 28. Bxe5 {[%clk 0:00:55.5]} 28... f6 {[%clk 0:00:25.1]} 29. Nxf6
{[%clk 0:00:52.7]} 29... Qxc4 {[%clk 0:00:22.7]} 30. Nd7+ {[%clk 0:00:40.8]}
30... Kg8 {[%clk 0:00:14.9]} 31. Bxh8 {[%clk 0:00:40.6]} 31... Qxb4 {[%clk
0:00:13.7]} 32. Rxb4 {[%clk 0:00:41]} 32... Kxh8 {[%clk 0:00:11.4]} 33. Rxa4
{[%clk 0:00:42.1]} 1-0

[Event "*** Titled Tuesday Blitz"]
[Site "Chess.com"]
[Date "2018.09.04"]
[Round "10"]
[White "AndrewDGreen"]
[Black "Zarikovs1999"]
[Result "1-0"]
[WhiteElo "2246"]
[BlackElo "2193"]
[TimeControl "180+2"]
[EndTime "15:51:25 PDT"]
[Termination "AndrewDGreen won by resignation"]

1. d4 {[%clk 0:03:01.9]} 1... Nf6 {[%clk 0:03:00]} 2. Nf3 {[%clk 0:03:02.7]}
2... c5 {[%clk 0:03:00.1]} 3. d5 {[%clk 0:03:03.2]} 3... e6 {[%clk 0:02:57.3]}
4. Nc3 {[%clk 0:03:02.1]} 4... d6 {[%clk 0:02:55.6]} 5. dxe6 {[%clk 0:02:57.3]}
5... fxe6 {[%clk 0:02:56.3]} 6. e4 {[%clk 0:02:56.3]} 6... Nc6 {[%clk
0:02:54.6]} 7. Bf4 {[%clk 0:02:54.3]} 7... Be7 {[%clk 0:02:53.2]} 8. Qd2 {[%clk
0:02:54]} 8... O-O {[%clk 0:02:53.4]} 9. O-O-O {[%clk 0:02:53.8]} 9... d5 {[%clk
0:02:49.1]} 10. exd5 {[%clk 0:02:50]} 10... exd5 {[%clk 0:02:49.4]} 11. Bd3
{[%clk 0:02:14.9]} 11... d4 {[%clk 0:02:16]} 12. Nb5 {[%clk 0:02:12.5]} 12...
Nd5 {[%clk 0:02:12.7]} 13. Bc4 {[%clk 0:02:06]} 13... Be6 {[%clk 0:02:01.3]} 14.
Bxd5 {[%clk 0:01:31.3]} 14... Qxd5 {[%clk 0:01:59.5]} 15. b3 {[%clk 0:01:31.3]}
15... c4 {[%clk 0:01:36.3]} 16. Nc7 {[%clk 0:00:40.4]} 16... Qd7 {[%clk
0:01:30.3]} 17. Nxa8 {[%clk 0:00:26.5]} 17... Rxa8 {[%clk 0:01:32.2]} 18. Nxd4
{[%clk 0:00:17.8]} 18... Ba3+ {[%clk 0:01:32.7]} 19. Kb1 {[%clk 0:00:18.4]}
19... cxb3 {[%clk 0:01:25.6]} 20. axb3 {[%clk 0:00:18.6]} 20... Nxd4 {[%clk
0:01:09.4]} 21. Qxd4 {[%clk 0:00:20.5]} 21... Qc6 {[%clk 0:01:10.9]} 22. Be5
{[%clk 0:00:16.1]} 22... Rc8 {[%clk 0:01:08]} 23. Rd2 {[%clk 0:00:11.9]} 23...
Bf5 {[%clk 0:00:57.2]} 24. Bxg7 {[%clk 0:00:08.7]} 24... Bxc2+ {[%clk
0:00:42.8]} 25. Ka2 {[%clk 0:00:09.6]} 25... Qa6 {[%clk 0:00:34.4]} 26. Qa4
{[%clk 0:00:05.4]} 26... Qxa4 {[%clk 0:00:20.4]} 27. bxa4 {[%clk 0:00:07.3]}
27... Bb4 {[%clk 0:00:22.3]} 28. Rd7 {[%clk 0:00:08.2]} 28... Bxa4 {[%clk
0:00:22.6]} 29. Rxb7 {[%clk 0:00:08.9]} 29... Bd2 {[%clk 0:00:21.8]} 30. Bb2
{[%clk 0:00:09.3]} 30... Bc6 {[%clk 0:00:22]} 31. Rxa7 {[%clk 0:00:09.6]} 31...
Bxg2 {[%clk 0:00:23.5]} 32. Rg1 {[%clk 0:00:09.9]} 32... Rc4 {[%clk 0:00:16.5]}
33. Rxg2+ {[%clk 0:00:10.8]} 33... Kf8 {[%clk 0:00:18.4]} 34. Ra8+ {[%clk
0:00:10.6]} 34... Kf7 {[%clk 0:00:18.8]} 35. Ra7+ {[%clk 0:00:12]} 1-0

[Event "*** Titled Tuesday Blitz"]
[Site "Chess.com"]
[Date "2018.09.04"]
[Round "10"]
[White "VeraNebolsina"]
[Black "inegrepus"]
[Result "1-0"]
[WhiteElo "2388"]
[BlackElo "2204"]
[TimeControl "180+2"]
[EndTime "15:51:30 PDT"]
[Termination "VeraNebolsina won by checkmate"]

1. e4 {[%clk 0:03:01.9]} 1... e6 {[%clk 0:03:00.2]} 2. d4 {[%clk 0:03:00.8]}
2... d5 {[%clk 0:03:01]} 3. exd5 {[%clk 0:03:01.8]} 3... exd5 {[%clk 0:03:02.9]}
4. Nf3 {[%clk 0:03:02.9]} 4... Bd6 {[%clk 0:03:03.8]} 5. Bd3 {[%clk 0:03:02.6]}
5... Ne7 {[%clk 0:03:05.4]} 6. c4 {[%clk 0:02:50.4]} 6... dxc4 {[%clk
0:03:03.2]} 7. Bxc4 {[%clk 0:02:50.7]} 7... Nbc6 {[%clk 0:03:02.9]} 8. O-O
{[%clk 0:02:43.8]} 8... O-O {[%clk 0:02:57.8]} 9. h3 {[%clk 0:02:44.5]} 9... Bf5
{[%clk 0:02:56.3]} 10. Nc3 {[%clk 0:02:43.8]} 10... Bg6 {[%clk 0:02:54.4]} 11.
a3 {[%clk 0:02:36.5]} 11... Nf5 {[%clk 0:02:55]} 12. Bg5 {[%clk 0:02:33.2]}
12... Qd7 {[%clk 0:02:52]} 13. Nd5 {[%clk 0:02:09]} 13... Nce7 {[%clk 0:02:25]}
14. Ne5 {[%clk 0:01:50.3]} 14... Bxe5 {[%clk 0:02:18.7]} 15. dxe5 {[%clk
0:01:49.7]} 15... Nxd5 {[%clk 0:02:18]} 16. Bxd5 {[%clk 0:01:41.6]} 16... c6
{[%clk 0:02:18.3]} 17. Bb3 {[%clk 0:01:37.9]} 17... Nd4 {[%clk 0:02:11.4]} 18.
Re1 {[%clk 0:01:30.6]} 18... h6 {[%clk 0:02:08.6]} 19. e6 {[%clk 0:01:28.8]}
19... Qd6 {[%clk 0:01:54.4]} 20. Be7 {[%clk 0:01:26.9]} 20... Qf4 {[%clk
0:01:37.4]} 21. Bxf8 {[%clk 0:01:23.3]} 21... Rxf8 {[%clk 0:01:34.9]} 22. exf7+
{[%clk 0:01:11.9]} 22... Bxf7 {[%clk 0:01:30.9]} 23. Bxf7+ {[%clk 0:01:12.6]}
23... Rxf7 {[%clk 0:01:32.4]} 24. Re8+ {[%clk 0:01:13.3]} 24... Kh7 {[%clk
0:01:29.1]} 25. Qd3+ {[%clk 0:01:13.7]} 25... g6 {[%clk 0:01:29.7]} 26. Rf1
{[%clk 0:01:12.6]} 26... Qd6 {[%clk 0:01:18.8]} 27. Qe4 {[%clk 0:01:00]} 27...
c5 {[%clk 0:01:13.9]} 28. Rc8 {[%clk 0:00:49.7]} 28... Re7 {[%clk 0:01:09.4]}
29. Qh4 {[%clk 0:00:43.6]} 29... Ne2+ {[%clk 0:00:53.8]} 30. Kh1 {[%clk
0:00:42.8]} 30... Nf4 {[%clk 0:00:55.1]} 31. Rf8 {[%clk 0:00:34.5]} 31... g5
{[%clk 0:00:51.9]} 32. Qg4 {[%clk 0:00:34.6]} 32... Qd5 {[%clk 0:00:46.1]} 33.
Qf5+ {[%clk 0:00:33.5]} 33... Qxf5 {[%clk 0:00:47]} 34. Rxf5 {[%clk 0:00:35]}
34... Kg6 {[%clk 0:00:42.5]} 35. Rxc5 {[%clk 0:00:35]} 35... Re2 {[%clk
0:00:43.2]} 36. Rb5 {[%clk 0:00:34.1]} 36... b6 {[%clk 0:00:44.6]} 37. Rb3
{[%clk 0:00:32.8]} 37... Rd2 {[%clk 0:00:40.3]} 38. g3 {[%clk 0:00:29.9]} 38...
Nd3 {[%clk 0:00:41.4]} 39. Kg2 {[%clk 0:00:30.5]} 39... Nxb2 {[%clk 0:00:34.8]}
40. Rc1 {[%clk 0:00:28]} 40... Nd3 {[%clk 0:00:34.5]} 41. Rc6+ {[%clk
0:00:28.7]} 41... Kh5 {[%clk 0:00:33.9]} 42. g4+ {[%clk 0:00:27.8]} 42... Kh4
{[%clk 0:00:35]} 43. Rxh6# {[%clk 0:00:29.2]} 1-0

[Event "*** Titled Tuesday Blitz"]
[Site "Chess.com"]
[Date "2018.09.04"]
[Round "10"]
[White "FMJoseHerrera"]
[Black "Rashad_Zeynalli"]
[Result "1-0"]
[WhiteElo "2417"]
[BlackElo "2365"]
[TimeControl "180+2"]
[EndTime "15:51:37 PDT"]
[Termination "FMJoseHerrera won by resignation"]

1. Nf3 {[%clk 0:03:01.9]} 1... f5 {[%clk 0:03:00.3]} 2. g3 {[%clk 0:03:01.7]}
2... Nf6 {[%clk 0:03:00.9]} 3. d3 {[%clk 0:03:02.9]} 3... g6 {[%clk 0:02:58.3]}
4. Nc3 {[%clk 0:03:03.7]} 4... Bg7 {[%clk 0:02:56]} 5. h4 {[%clk 0:03:04.9]}
5... d6 {[%clk 0:02:56.1]} 6. Bg5 {[%clk 0:03:04.6]} 6... c6 {[%clk 0:02:50.1]}
7. Qd2 {[%clk 0:03:04.9]} 7... Qa5 {[%clk 0:02:46.6]} 8. h5 {[%clk 0:03:03.9]}
8... Nxh5 {[%clk 0:02:45.2]} 9. Bg2 {[%clk 0:02:50.3]} 9... Na6 {[%clk
0:02:37.7]} 10. Bh6 {[%clk 0:02:47.1]} 10... Bxh6 {[%clk 0:02:31.8]} 11. Qxh6
{[%clk 0:02:49]} 11... Bd7 {[%clk 0:02:32.1]} 12. Rxh5 {[%clk 0:02:45.2]} 12...
gxh5 {[%clk 0:02:31.8]} 13. Qxh5+ {[%clk 0:02:47.1]} 13... Kd8 {[%clk
0:02:32.5]} 14. Ng5 {[%clk 0:02:43.9]} 14... Kc7 {[%clk 0:02:31.6]} 15. a3
{[%clk 0:02:33.3]} 15... Rag8 {[%clk 0:02:21.6]} 16. Nf7 {[%clk 0:02:30.5]}
16... Be8 {[%clk 0:02:16.1]} 17. Qh4 {[%clk 0:02:27.2]} 17... Bxf7 {[%clk
0:02:10]} 18. Qxe7+ {[%clk 0:02:28.1]} 18... Kb8 {[%clk 0:02:11.4]} 19. Qxf7
{[%clk 0:02:28.2]} 19... f4 {[%clk 0:02:09.7]} 20. Qxf4 {[%clk 0:02:24.8]} 20...
Qc5 {[%clk 0:01:31.2]} 21. Bf3 {[%clk 0:02:17]} 21... Rf8 {[%clk 0:01:30.1]} 22.
Qh6 {[%clk 0:02:17.3]} 22... Nc7 {[%clk 0:01:24.2]} 23. O-O-O {[%clk 0:02:09.2]}
23... d5 {[%clk 0:01:24.2]} 24. Qh2 {[%clk 0:01:55.3]} 24... Ne6 {[%clk
0:01:20.1]} 25. g4+ {[%clk 0:01:50.9]} 25... Ka8 {[%clk 0:01:20.5]} 26. Qe5
{[%clk 0:01:51.6]} 26... Nd4 {[%clk 0:01:06.1]} 27. Bh1 {[%clk 0:01:30.2]} 27...
Re8 {[%clk 0:01:05.1]} 28. Qg7 {[%clk 0:01:30.6]} 28... Rhg8 {[%clk 0:00:49.8]}
29. Qxh7 {[%clk 0:01:31.5]} 29... Rxg4 {[%clk 0:00:50.7]} 30. e3 {[%clk
0:01:29.1]} 30... Nb5 {[%clk 0:00:42.3]} 31. Nxb5 {[%clk 0:01:25.2]} 31... cxb5
{[%clk 0:00:42.3]} 32. Qd7 {[%clk 0:01:24.5]} 32... Rc8 {[%clk 0:00:35.9]} 33.
c3 {[%clk 0:01:25.1]} 33... Rg5 {[%clk 0:00:24.8]} 34. Kb1 {[%clk 0:01:24]}
34... a6 {[%clk 0:00:23.6]} 35. f4 {[%clk 0:01:23.5]} 35... Rh5 {[%clk 0:00:21]}
36. Bf3 {[%clk 0:01:24.3]} 36... Rh2 {[%clk 0:00:20]} 37. Bxd5 {[%clk
0:01:24.5]} 37... Rc7 {[%clk 0:00:20.2]} 38. Qd8+ {[%clk 0:01:20.5]} 38... Ka7
{[%clk 0:00:21.5]} 39. d4 {[%clk 0:01:19.1]} 39... Qb6 {[%clk 0:00:22.7]} 40. e4
{[%clk 0:01:13.9]} 40... a5 {[%clk 0:00:22.4]} 41. f5 {[%clk 0:01:11.6]} 41...
b4 {[%clk 0:00:23.2]} 42. axb4 {[%clk 0:01:12.9]} 42... axb4 {[%clk 0:00:24.2]}
43. c4 {[%clk 0:01:14.2]} 43... b3 {[%clk 0:00:21.7]} 44. c5 {[%clk 0:00:54.8]}
44... Qa5 {[%clk 0:00:19.3]} 45. Bxb3 {[%clk 0:00:55.9]} 45... Ka6 {[%clk
0:00:13.9]} 46. Qd6+ {[%clk 0:00:56.5]} 46... Ka7 {[%clk 0:00:14.1]} 47. Qxh2
{[%clk 0:00:56.7]} 1-0

[Event "*** Titled Tuesday Blitz"]
[Site "Chess.com"]
[Date "2018.09.04"]
[Round "10"]
[White "farzadbfd"]
[Black "NikolaGry"]
[Result "1-0"]
[WhiteElo "2550"]
[BlackElo "2595"]
[TimeControl "180+2"]
[EndTime "15:51:59 PDT"]
[Termination "farzadbfd won by checkmate"]

1. e4 {[%clk 0:03:01.9]} 1... e5 {[%clk 0:02:57.8]} 2. Nf3 {[%clk 0:03:02.4]}
2... d6 {[%clk 0:02:58.9]} 3. d4 {[%clk 0:03:01.7]} 3... exd4 {[%clk 0:02:59]}
4. Nxd4 {[%clk 0:03:03.6]} 4... Nf6 {[%clk 0:03:00]} 5. Nc3 {[%clk 0:03:02.2]}
5... g6 {[%clk 0:03:00.5]} 6. Be3 {[%clk 0:02:47.1]} 6... Bg7 {[%clk 0:03:00.3]}
7. f3 {[%clk 0:02:47.9]} 7... O-O {[%clk 0:03:00.7]} 8. Qd2 {[%clk 0:02:47.8]}
8... d5 {[%clk 0:02:31.2]} 9. O-O-O {[%clk 0:01:48.1]} 9... dxe4 {[%clk
0:02:28.6]} 10. fxe4 {[%clk 0:01:48.8]} 10... Ng4 {[%clk 0:02:15.3]} 11. Bg5
{[%clk 0:01:46.3]} 11... Qxd4 {[%clk 0:02:03.9]} 12. Qxd4 {[%clk 0:01:46.8]}
12... Bxd4 {[%clk 0:02:04.6]} 13. Rxd4 {[%clk 0:01:48.7]} 13... Nc6 {[%clk
0:02:05.2]} 14. Rd2 {[%clk 0:01:46.3]} 14... Be6 {[%clk 0:01:23.7]} 15. Nd5
{[%clk 0:01:31.8]} 15... Rac8 {[%clk 0:01:09.4]} 16. h3 {[%clk 0:01:32.2]} 16...
Nge5 {[%clk 0:01:09]} 17. Bf6 {[%clk 0:01:29.9]} 17... Nd7 {[%clk 0:01:04.9]}
18. Bc3 {[%clk 0:01:28.2]} 18... Bxd5 {[%clk 0:00:59.7]} 19. exd5 {[%clk
0:01:27.5]} 19... Nce5 {[%clk 0:01:00.6]} 20. Bb5 {[%clk 0:01:27.6]} 20... a6
{[%clk 0:01:00.4]} 21. Ba4 {[%clk 0:01:25.3]} 21... b5 {[%clk 0:01:00.7]} 22.
Bb3 {[%clk 0:01:26.3]} 22... Rfe8 {[%clk 0:01:00.7]} 23. Rf1 {[%clk 0:01:25.9]}
23... Nc5 {[%clk 0:00:52.7]} 24. Re2 {[%clk 0:00:38.8]} 24... Ned7 {[%clk
0:00:38]} 25. Ref2 {[%clk 0:00:38.3]} 25... Nxb3+ {[%clk 0:00:36.6]} 26. axb3
{[%clk 0:00:40.2]} 26... f5 {[%clk 0:00:31.8]} 27. g4 {[%clk 0:00:18.7]} 27...
fxg4 {[%clk 0:00:32]} 28. hxg4 {[%clk 0:00:20.6]} 28... Ne5 {[%clk 0:00:32.9]}
29. g5 {[%clk 0:00:20.3]} 29... Rcd8 {[%clk 0:00:33]} 30. Rf6 {[%clk 0:00:15.2]}
30... Rxd5 {[%clk 0:00:31.9]} 31. Rxa6 {[%clk 0:00:15.5]} 31... c5 {[%clk
0:00:31.4]} 32. Ra7 {[%clk 0:00:16.1]} 32... b4 {[%clk 0:00:31.7]} 33. Bxe5
{[%clk 0:00:16.8]} 33... Rdxe5 {[%clk 0:00:32.7]} 34. Rff7 {[%clk 0:00:16.4]}
34... Re1+ {[%clk 0:00:31.3]} 35. Kd2 {[%clk 0:00:17.4]} 35... R1e2+ {[%clk
0:00:32.4]} 36. Kd3 {[%clk 0:00:18.4]} 36... R8e3+ {[%clk 0:00:33.4]} 37. Kc4
{[%clk 0:00:19.1]} 37... Rxc2+ {[%clk 0:00:34.5]} 38. Kb5 {[%clk 0:00:20.6]}
38... c4 {[%clk 0:00:29.1]} 39. Rg7+ {[%clk 0:00:20.8]} 39... Kf8 {[%clk
0:00:27.8]} 40. Rgf7+ {[%clk 0:00:20.6]} 40... Kg8 {[%clk 0:00:28.2]} 41. Rfc7
{[%clk 0:00:21.6]} 41... Re5+ {[%clk 0:00:23.5]} 42. Kxb4 {[%clk 0:00:21.9]}
42... Re8 {[%clk 0:00:23.6]} 43. Rg7+ {[%clk 0:00:22.6]} 43... Kh8 {[%clk
0:00:23.9]} 44. Rxh7+ {[%clk 0:00:23.8]} 44... Kg8 {[%clk 0:00:25.1]} 45. Rhg7+
{[%clk 0:00:22.5]} 45... Kf8 {[%clk 0:00:26]} 46. Raf7# {[%clk 0:00:21]} 1-0

[Event "*** Titled Tuesday Blitz"]
[Site "Chess.com"]
[Date "2018.09.04"]
[Round "10"]
[White "GadimbayliA"]
[Black "VerdeNotte"]
[Result "1-0"]
[WhiteElo "2713"]
[BlackElo "2812"]
[TimeControl "180+2"]
[EndTime "15:52:14 PDT"]
[Termination "GadimbayliA won by checkmate"]

1. e4 {[%clk 0:03:01.9]} 1... c5 {[%clk 0:02:54.4]} 2. Nf3 {[%clk 0:03:02.4]}
2... d6 {[%clk 0:02:55]} 3. d4 {[%clk 0:03:02.7]} 3... cxd4 {[%clk 0:02:56.4]}
4. Nxd4 {[%clk 0:03:04.6]} 4... Nf6 {[%clk 0:02:57.4]} 5. Nc3 {[%clk 0:03:04.4]}
5... g6 {[%clk 0:02:55.5]} 6. Be3 {[%clk 0:03:01.4]} 6... Bg7 {[%clk 0:02:55.2]}
7. f3 {[%clk 0:03:02.7]} 7... O-O {[%clk 0:02:56.3]} 8. Qd2 {[%clk 0:03:03]}
8... Nc6 {[%clk 0:02:57.5]} 9. O-O-O {[%clk 0:03:03.4]} 9... d5 {[%clk
0:02:58.7]} 10. exd5 {[%clk 0:03:04.8]} 10... Nxd5 {[%clk 0:02:59.3]} 11. Nxc6
{[%clk 0:03:06]} 11... bxc6 {[%clk 0:03:00.2]} 12. Bd4 {[%clk 0:03:06.7]} 12...
Nxc3 {[%clk 0:02:58.9]} 13. Qxc3 {[%clk 0:03:07.6]} 13... Bh6+ {[%clk 0:03:00]}
14. Be3 {[%clk 0:03:08.9]} 14... Bxe3+ {[%clk 0:03:01.2]} 15. Qxe3 {[%clk
0:03:10.8]} 15... Qb6 {[%clk 0:03:02.4]} 16. Qxe7 {[%clk 0:03:11.8]} 16... Be6
{[%clk 0:03:03.3]} 17. Qa3 {[%clk 0:03:12.7]} 17... Rad8 {[%clk 0:03:04.1]} 18.
Bd3 {[%clk 0:03:12.5]} 18... Rd4 {[%clk 0:03:05.1]} 19. Rde1 {[%clk 0:03:02.3]}
19... c5 {[%clk 0:02:59]} 20. Be4 {[%clk 0:02:24.8]} 20... Rb8 {[%clk
0:02:51.1]} 21. b3 {[%clk 0:02:24.2]} 21... c4 {[%clk 0:02:49.1]} 22. Rd1 {[%clk
0:02:17.4]} 22... Rbd8 {[%clk 0:02:45.2]} 23. Rxd4 {[%clk 0:01:38.1]} 23... Qxd4
{[%clk 0:02:45.1]} 24. Kb1 {[%clk 0:01:35.9]} 24... h5 {[%clk 0:02:34.6]} 25.
Qb2 {[%clk 0:01:09.7]} 25... c3 {[%clk 0:02:34.6]} 26. Qc1 {[%clk 0:01:09.6]}
26... a5 {[%clk 0:02:28]} 27. a4 {[%clk 0:01:06.1]} 27... Kg7 {[%clk 0:01:47.2]}
28. Qg5 {[%clk 0:00:57.8]} 28... Rb8 {[%clk 0:01:35.8]} 29. Kc1 {[%clk
0:00:57.4]} 29... Bxb3 {[%clk 0:01:14.7]} 30. cxb3 {[%clk 0:00:53]} 30... Rxb3
{[%clk 0:01:14.4]} 31. Rd1 {[%clk 0:00:51]} 31... Qb6 {[%clk 0:00:46]} 32. Qe5+
{[%clk 0:00:50.1]} 32... Kh7 {[%clk 0:00:46.8]} 33. Kc2 {[%clk 0:00:35.8]} 33...
Rb2+ {[%clk 0:00:45.6]} 34. Kd3 {[%clk 0:00:36.6]} 34... Qb3 {[%clk 0:00:29.1]}
35. Rc1 {[%clk 0:00:29.2]} 35... Rd2+ {[%clk 0:00:21.3]} 36. Ke3 {[%clk
0:00:27.9]} 36... Qb6+ {[%clk 0:00:20.7]} 37. Kf4 {[%clk 0:00:28.9]} 37... Rxg2
{[%clk 0:00:18.5]} 38. Rxc3 {[%clk 0:00:29.5]} 38... Qd8 {[%clk 0:00:16.3]} 39.
Qxh5+ {[%clk 0:00:24.9]} 39... Kg8 {[%clk 0:00:16.1]} 40. Qc5 {[%clk 0:00:26.1]}
40... Qf6+ {[%clk 0:00:11.6]} 41. Ke3 {[%clk 0:00:24.1]} 41... Rxh2 {[%clk
0:00:12.5]} 42. Rc2 {[%clk 0:00:21]} 42... Rh4 {[%clk 0:00:11.4]} 43. Qxa5
{[%clk 0:00:20.3]} 43... Qf4+ {[%clk 0:00:11.7]} 44. Kd3 {[%clk 0:00:18.5]}
44... Rh5 {[%clk 0:00:10.1]} 45. Rc8+ {[%clk 0:00:16.9]} 45... Kh7 {[%clk
0:00:10.3]} 46. Qxh5+ {[%clk 0:00:17.1]} 46... Kg7 {[%clk 0:00:11.1]} 47. Qh8#
{[%clk 0:00:17]} 1-0